Cogmind - Beta 16 @@@ ROGUE MODE // 2025.11.03 @ 23:21:35 Player: Darcyisverycute Result: Destroyed by EX-DEC with AWS/EX-DEC Performance ------------- Evolutions (1) 500 Regions Visited (5) 1000 Robots Destroyed (48) 240 Value Destroyed (851) 851 Prototype IDs (1) 20 Alien Tech Used (0) 0 Bonus (-165) -165 TOTAL SCORE: 2446 Bonus ------- Follower Combat Kills 66 Friendly Fire -231 Cogmind --------- Core Integrity 0/400 Matter 109/300 Energy 100/100 System Corruption 5% Temperature Hot (275) Movement Treading (480) Ox4 Location -9/Exiles Parts ------- > --- POWER (1) -------- (None) > --- PROPULSION (3) --- Light Treads > --- UTILITY (3) ------ Huge Storage Unit Targeting Computer Hardened Light Armor Plating > --- WEAPON (2) ------- Improved Light Cannon Improved Light Cannon > --- INVENTORY (25) --- Medium Storage Unit Sensor Array Signal Interpreter Transport Network Coupler Salvage Targeting Computer ECM Suite Hardened Light Armor Plating Shield Generator Shotgun Shotgun Shotgun Improved Light Cannon Improved Light Cannon Grenade Launcher Grenade Launcher Grenade Launcher Datajack Mace Peak State ------------ > --- POWER ------------ Light Nuclear Core > --- PROPULSION ------- Light Treads Light Treads Light Treads > --- UTILITY ---------- Huge Storage Unit Seismic Detector Hacking Suite > --- WEAPON ----------- Advanced Beam Cannon Shotgun > --- INVENTORY -------- Light Treads Light Treads Medium Storage Unit Large Matter Pod Sensor Array Signal Interpreter Transport Network Coupler Targeting Computer ECM Suite Hardened Light Armor Plating Hardened Light Armor Plating Hardened Light Armor Plating Hardened Light Armor Plating Shield Generator Shotgun Shotgun Improved Light Cannon Improved Light Cannon Improved Light Cannon Improved Light Cannon Grenade Launcher Grenade Launcher Grenade Launcher Datajack Mace [Rating: 19] Favorites ----------- Power Ion Engine Engine Ion Engine Power Core Light Nuclear Core Propulsion Light Treads Treads Light Treads Utility Huge Storage Unit Device Seismic Detector Storage Huge Storage Unit Processor Targeting Computer Hackware Hacking Suite Protection Hardened Light Armor Plating Weapon Shotgun Energy Gun Medium Laser Energy Cannon Advanced Beam Cannon Ballistic Gun Shotgun Ballistic Cannon Improved Light Cannon Launcher Grenade Launcher Impact Weapon Mace Build | -11 -10 -10 -9 -9 -9 ------- Run | Yrd Mat Min Mat Min Exi Slots Evolved 2 | . . . 2 . . Power . | . . . . . . Propulsion 1 | . . . 1 . . Utility 1 | . . . 1 . . Weapon . | . . . . . . Parts Attached 39 | 7 9 3 10 2 8 Power 3 | 1 1 . . 1 . Engine 2 | 1 . . . 1 . Core 1 | . 1 . . . . Reactor . | . . . . . . Propulsion 10 | 2 1 . 3 1 3 Treads 10 | 2 1 . 3 1 3 Leg . | . . . . . . Wheel . | . . . . . . Hover . | . . . . . . Flight . | . . . . . . Utility 10 | 2 1 1 4 . 2 Device 2 | 1 . 1 . . . Storage 2 | 1 1 . . . . Processor 1 | . . . . . 1 Hackware 1 | . . . 1 . . Protection 4 | . . . 3 . 1 Artifact . | . . . . . . Weapon 16 | 2 6 2 3 . 3 Energy Gun 2 | 2 . . . . . Energy Cannon 1 | . . . 1 . . Ballistic Gun 4 | . 1 . 1 . 2 Ballistic Cannon 4 | . 2 1 . . 1 Launcher 3 | . 1 1 1 . . Special Weapon . | . . . . . . Impact Weapon 2 | . 2 . . . . Slashing Weapon . | . . . . . . Piercing Weapon . | . . . . . . Special Melee Weapon . | . . . . . . Unidentified Prototypes 1 | . . . 1 . . Parts Lost 13 | . 2 1 2 . 8 Power 3 | . 1 . 1 . 1 Propulsion 6 | . 1 . . . 5 Utility 3 | . . 1 1 . 1 Weapon 1 | . . . . . 1 Highest Loss Streak 7 | . 2 1 1 . 7 To Critical Strikes 5 | . . . . . 5 Average Backups 21 | 2 17 24 24 25 21 Power . | . . . . . . Propulsion 2 | 1 2 2 2 3 1 Utility 9 | . 6 11 11 11 9 Weapon 9 | . 8 10 10 10 9 Tool/Special . | . . . . . . Unused Backups 21 | . 7 . 1 . 13 Power 4 | . 1 . . . 3 Propulsion 2 | . 2 . . . . Utility 11 | . 1 . 1 . 9 Weapon 3 | . 3 . . . . Tool/Special 1 | . . . . . 1 Average Slot Usage (%) 95 | . 96 97 96 99 90 Engine 5 | . 5 . . 10 6 Core 4 | . 4 14 8 . . Treads 29 | . 27 28 32 33 28 Device 8 | . 14 11 6 6 3 Storage 12 | . 14 14 11 11 11 Processor 2 | . . . . . 7 Hackware 1 | . . . 6 . . Protection 7 | . . . 8 15 11 Energy Gun 2 | . 9 . . . . Ballistic Gun 13 | . . 14 19 22 16 Ballistic Cannon 2 | . 1 4 1 . 3 Launcher 1 | . . 5 . . 2 Impact Weapon 4 | . 15 4 . . . Peak Build Rating 19 | 9 17 16 19 17 17 Average Rating 14 | 6 13 14 17 16 14 On Entrance 11 | . 9 16 14 15 16 Avg Prop Armor Cover (%) . | . . . . . . Naked Turns . | . . . . . . Heaviest Build 101 | 13 91 93 101 101 97 Greatest Support 63 | 40 40 40 60 63 63 Greatest Overweight (x) 4 | . 4 2 2 1 4 Average Overweight (x) 1 | . 1 2 1 1 1 Largest Inventory Capacity 25 | 8 25 25 25 25 25 Average Capacity 23 | 7 21 25 25 25 25 Most Carried 25 | 5 25 25 25 25 25 Average Carried 21 | 2 17 24 24 25 21 Final Capacity 25 | 8 25 25 25 25 25 Final Carried 25 | 5 25 24 25 25 18 Class Distribution -------------------- 87% | Mutant 12% | Scavenger-Mutant Dominant Class ---------------- Mutant | -10/Materials Mutant | -10/Mines Scavenger-Mutant | -9/Materials Mutant | -9/Mines Mutant | -9/Exiles Resources | -11 -10 -10 -9 -9 -9 ----------- Run | Yrd Mat Min Mat Min Exi Matter Collected 1780 | 270 331 51 450 61 617 Remotely . | . . . . . . Salvage Created 1473 | 136 420 40 728 94 55 Parts 83 | 9 18 5 38 10 3 Haulers Intercepted 2 | . 1 . 1 . . Recyclers Shooed 3 | 1 . . 1 1 . Parts Field Recycled . | . . . . . . Retrieved Matter . | . . . . . . Parts Self-Destructed . | . . . . . . Prevented . | . . . . . . Parts Restored . | . . . . . . Kills | -11 -10 -10 -9 -9 -9 ------- Run | Yrd Mat Min Mat Min Exi Combat Hostiles Destroyed 27 | . 6 3 10 2 6 Melee 3 | . 3 . . . . Guns 13 | . . . 10 2 1 Cannons 1 | . 1 . . . . AOE 8 | . . 3 . . 5 Classes Destroyed 14 | 2 4 2 4 . 2 Worker 3 | . . . 2 1 . Tunneler 4 | 3 1 . . . . Hauler 2 | . 1 . 1 . . Recycler 4 | 1 . . 2 1 . Mechanic 1 | . . . 1 . . Operator 2 | . 2 . . . . Turret 1 | . . . . . 1 Watcher 2 | . 2 . . . . Swarmer 5 | . . 3 . 2 . Grunt 13 | . 6 . 7 . . Brawler 1 | . . . 1 . . Sentry 2 | . . . 2 . . Zionite 7 | . . 1 . . 6 Assembled 5 | . . . . . 5 Thug 1 | . . . 1 . . Best Kill Streak 5 | 4 2 3 3 3 5 Combat Bots Only 5 | . 2 3 3 2 5 Max Kills in Single Turn 2 | 1 1 2 1 1 2 Gunslinging . | . . . . . . Exploded 2 | . . 2 . . 2 Melee 1 | . 1 . . . . Uniques/NPCs Destroyed 1 | . . . . . 1 8R-AWN (-9/Exiles) Combat | -11 -10 -10 -9 -9 -9 -------- Run | Yrd Mat Min Mat Min Exi Hostile Shots Fired 217 | . 21 13 53 2 128 Missed 56 | . 9 6 15 . 26 Hits 161 | . 12 7 38 2 102 Projectile 161 | . 12 7 38 2 102 Critical Strikes 29 | . 1 . . . 28 Damage Taken 2946 | . 513 84 419 14 1916 Core 493 | . 74 6 17 8 388 Absorbed by Shields . | . . . . . . Core Remaining (%) 84 | 100 . 68 . . . Volleys Fired 147 | 9 13 4 33 7 81 Largest 2 | 2 2 1 2 2 2 Hottest 100 | 100 100 30 56 46 66 Shots Fired 256 | 18 27 5 65 14 127 Gun 170 | 18 25 . 58 14 55 Cannon 48 | . 2 . 6 . 40 Launcher 38 | . . 5 1 . 32 Special . | . . . . . . Kinetic 176 | . 3 . 64 14 95 Thermal 42 | 18 24 . . . . Explosive 38 | . . 5 1 . 32 Electromagnetic . | . . . . . . Robot Hit Streak 39 | 12 10 2 15 6 39 Robot Miss Streak 4 | 1 2 . 4 2 2 Penetration Max . | . . . . . . Secondary Targets 2 | . . . 1 1 . Max Gunslinging Chain 1 | . . . 1 1 . Shots Hit Robots 193 | 16 31 1 53 10 82 Core Hits 98 | 4 11 6 32 6 39 Critical Kills 1 | . 1 . . . . Critical Parts Destroyed 7 | . 5 . 2 . . Critical Strikes 11 | 1 7 . 2 . 1 Burn 2 | 1 1 . . . . Destroy 3 | . . . 2 . 1 Smash 6 | . 6 . . . . Melee Attacks 34 | . 34 . . . . Impact 34 | . 34 . . . . Slashing . | . . . . . . Piercing . | . . . . . . Sneak Attacks 1 | . 1 . . . . Combat Hostiles . | . . . . . . Follow-up Attacks 2 | . 2 . . . . Damage Inflicted 4423 | 215 616 232 964 187 2209 Guns 2398 | 215 213 . 857 143 970 Cannons 697 | . 22 . 66 . 609 Explosions 891 | . . 232 29 . 630 Melee 381 | . 381 . . . . Ramming 56 | . . . 12 44 . Kinetic 2667 | . 22 . 923 143 1579 Thermal 428 | 215 213 . . . . Explosive 891 | . . 232 29 . 630 Electromagnetic . | . . . . . . Impact 381 | . 381 . . . . Slashing . | . . . . . . Piercing . | . . . . . . Highest Corruption 9 | . 9 9 . . 5 Average Corruption 8 | . 9 9 . . 3 Corruption Purged . | . . . . . . Corruption Blocked . | . . . . . . Effects 57 | . 39 17 . . 1 Message Errors 10 | . 8 2 . . . Matter Fused 15 | . 9 6 . . . Heat Flow Errors 8 | . 5 2 . . 1 Energy Discharges 9 | . 5 4 . . . Parts Rejected 1 | . 1 . . . . Data Loss (minor) 7 | . 5 2 . . . Data Loss (major) 4 | . 4 . . . . Misfires 2 | . 1 1 . . . Alerts 1 | . 1 . . . . Overload Shots . | . . . . . . Overflow Damage 212 | . 163 20 . . 29 Projectiles . | . . . . . . Explosions 49 | . . 20 . . 29 Melee 163 | . 163 . . . . Knockbacks 6 | . 1 . . . 5 Impact 1 | . 1 . . . . Kinetic 5 | . . . . . 5 Secondary . | . . . . . . Self-Inflicted Damage 108 | . . 32 . . 76 Shots 5 | . . 2 . . 3 Rammed 7 | . . . 1 6 . Targets Rammed 8 | . . . 2 6 . Kicked . | . . . . . . Crushed 1 | . . . 1 . . Highest Temperature 276 | 234 276 245 31 24 22 Average Temperature 68 | 90 79 117 15 11 14 Received Heat Transfer 288 | . 111 . 150 . 27 Siege Activations . | . . . . . . Martial Activations . | . . . . . . Shielding Activations . | . . . . . . Robots Disrupted . | . . . . . . Combat Hostiles . | . . . . . . Robots Corrupted 2 | . 2 . . . . Combat Hostiles 2 | . 2 . . . . Parts Fried 3 | . 3 . . . . Impact Corruptions 7 | . 7 . . . . Robots Melted 1 | 1 . . . . . Combat Hostiles . | . . . . . . Parts Melted 5 | 4 1 . . . . Heat Transferred 1406 | 703 703 . . . . Parts Sabotaged . | . . . . . . Parts Stolen . | . . . . . . Parts Stripped . | . . . . . . Power Chain Reactions . | . . . . . . Alert | -11 -10 -10 -9 -9 -9 ------- Run | Yrd Mat Min Mat Min Exi Maximum Alert Level . | . . . . . . Low Security (%) 100 | 100 100 100 100 100 . Level 1 . | . . . . . . Level 2 . | . . . . . . Level 3 . | . . . . . . Level 4 . | . . . . . . Level 5 . | . . . . . . High Security . | . . . . . . Max Security . | . . . . . . Peak Influence 81 | 10 61 81 67 65 . Initial . | . . . . . . Average 12 | 1 10 13 22 4 . Influence Increases 869 | 20 255 106 403 85 . Destroy 0b10 Robot/C 460 | . 120 60 240 40 . Destroy 0b10 Robot/NC 95 | 20 30 . 35 10 . Destroy Leader 120 | . 46 10 54 10 . Allied During Kill 4 | . . . 4 . . Successful Hack 36 | . 19 . 7 10 . Disable Machine 15 | . 15 . . . . Destroy Structure 49 | . 10 36 3 . . Lose Combat Pursuer 90 | . 15 . 60 15 . Influence Decreases 869 | 20 255 106 402 86 . Entered New Map 1 | . . . . 1 . Time Decay 796 | 20 244 96 351 85 . Lost Part 31 | . 11 10 10 . . Purge Threat 41 | . . . 41 . . Squads Dispatched 4 | . 2 . 2 . . Investigation . | . . . . . . Extermination . | . . . . . . Reinforcement 4 | . 2 . 2 . . Assault . | . . . . . . Garrison . | . . . . . . Intercept . | . . . . . . Searches Triggered . | . . . . . . Construction Impeded . | . . . . . . Haulers Reinforced . | . . . . . . Active Scanning Responses . | . . . . . . Cargo Convoy Interrupts . | . . . . . . Stealth | -11 -10 -10 -9 -9 -9 --------- Run | Yrd Mat Min Mat Min Exi Distress Signals 4 | . 1 . 2 1 . Communications Jammed . | . . . . . . Distress Signals . | . . . . . . Times Spotted 60 | . 14 3 24 3 16 Peak Tracking Total 11 | . 3 3 8 3 11 Tactical Retreats 8 | . 2 . 3 1 2 Traps | -11 -10 -10 -9 -9 -9 ------- Run | Yrd Mat Min Mat Min Exi Traps Triggered . | . . . . . . Indirectly . | . . . . . . Trap Hack Attempts . | . . . . . . Triggered . | . . . . . . Disarmed . | . . . . . . Reprogrammed . | . . . . . . Reused . | . . . . . . Traps Extracted . | . . . . . . Installed . | . . . . . . Triggered . | . . . . . . Machines | -11 -10 -10 -9 -9 -9 ---------- Run | Yrd Mat Min Mat Min Exi Machines Disabled 9 | . 1 . . . 8 Max in Single Turn 1 | . 1 . . . 1 Machines Repaired . | . . . . . . Machines Dismantled . | . . . . . . Machines Sabotaged . | . . . . . . Overloaded Fab Kills . | . . . . . . Hacking | -11 -10 -10 -9 -9 -9 --------- Run | Yrd Mat Min Mat Min Exi Machines Accessed 11 | . 5 . 4 1 1 Terminals 9 | . 5 . 3 1 . Fabricators . | . . . . . . Repair Stations . | . . . . . . Recycling Units . | . . . . . . Scanalyzers 1 | . . . 1 . . Garrison Access . | . . . . . . Total Hacks 37 | . 14 . 17 5 1 Successful 24 | . 9 . 11 3 1 Failed 12 | . 5 . 5 2 . Catastrophic . | . . . . . . Database Lockouts 1 | . . . 1 . . Manual 27 | . 15 . 8 4 . Terminals 32 | . 14 . 13 5 . Fabricators . | . . . . . . Repair Stations . | . . . . . . Recycling Units . | . . . . . . Scanalyzers 4 | . . . 4 . . Garrison Access . | . . . . . . Terminal Hacks 6 | . 1 . 2 2 1 Record 1 | . . . . . 1 Robot Schematic 1 | . 1 . . . . Robot Analysis 2 | . . . 1 1 . Unreport Threat 1 | . . . 1 . . Zone Layout 1 | . . . . 1 . Fabricator Hacks . | . . . . . . Repair Station Hacks . | . . . . . . Recycling Unit Hacks . | . . . . . . Scanalyzer 3 | . . . 3 . . Retrieve Study 3 | . . . 3 . . Garrison Access Hacks . | . . . . . . Unauthorized Hacks 15 | . 8 . 6 1 . Terminals 15 | . 8 . 6 1 . Botnet 6 | . 3 . 3 . . Skim 9 | . 5 . 3 1 . Fabricators . | . . . . . . Repair Stations . | . . . . . . Recycling Units . | . . . . . . Scanalyzers . | . . . . . . Garrison Access . | . . . . . . Data Cores Recovered 1 | . 1 . . . . Used 1 | . 1 . . . . Hacking Detections 10 | . 5 . 4 1 . Full Trace Events . | . . . . . . Feedback Events . | . . . . . . Feedback Blocked . | . . . . . . Robot Schematics Acquired 1 | . 1 . . . . Robots Built . | . . . . . . Authchips . | . . . . . . Time . | . . . . . . Total Robot Build Rating . | . . . . . . Part Schematics Acquired . | . . . . . . Parts Built . | . . . . . . Authchips . | . . . . . . Time . | . . . . . . Total Part Build Rating . | . . . . . . Part Studies Acquired 3 | . . . 3 . . Parts Repaired . | . . . . . . Time . | . . . . . . Parts Recycled . | . . . . . . Recycled Matter . | . . . . . . Retrieved Matter . | . . . . . . Retrieved Components . | . . . . . . Parts Scanalyzed . | . . . . . . Part Schematics Acquired . | . . . . . . Parts Damaged . | . . . . . . Bothacking | -11 -10 -10 -9 -9 -9 ------------ Run | Yrd Mat Min Mat Min Exi Used RIF Installer . | . . . . . . Robots Hacked . | . . . . . . Non-combat . | . . . . . . Combat . | . . . . . . Robot Hacks Applied . | . . . . . . Relay Couplers Released . | . . . . . . Fabnet Peak Effective % . | . . . . . . Robots Rewired . | . . . . . . Allies Hacked . | . . . . . . Hacks Repelled . | . . . . . . Allies | -11 -10 -10 -9 -9 -9 -------- Run | Yrd Mat Min Mat Min Exi Total Allies 3 | . . 2 . 1 . Largest Group 2 | . . 2 1 1 . Highest-Rated Group 45 | . . 45 31 31 . Highest-Rated Ally 31 | . . 31 31 31 . Total Orders . | . . . . . . Ally Attacks 8 | . . . 8 . . Total Damage 106 | . . . 106 . . Kills 3 | . . . 3 . . Allies Corrupted . | . . . . . . Allies Melted . | . . . . . . Intel | -11 -10 -10 -9 -9 -9 ------- Run | Yrd Mat Min Mat Min Exi Active Infowar (turns) 4509 | 40 1960 442 781 736 550 Terrain 2158 | 40 1960 158 . . . Seismic 2351 | . . 284 781 736 550 Robot Analysis Total 2 | . . . 1 1 . Derelict Logs Recovered 2 | . . . . 2 . Drone Launches . | . . . . . . Drone Recoveries . | . . . . . . Exploration | -11 -10 -10 -9 -9 -9 ------------- Run | Yrd Mat Min Mat Min Exi Turns Passed 7168 | 119 1960 540 1307 1226 2016 Spaces Moved 2406 | 49 637 131 447 495 647 Core 3 | 3 . . . . . Treads 2403 | 46 637 131 447 495 647 Legs . | . . . . . . Wheels . | . . . . . . Hover . | . . . . . . Flight . | . . . . . . Fastest Speed 50 | 50 160 320 240 240 240 Average Speed 256 | 153 267 320 243 240 263 Slowest Speed 480 | 160 480 320 320 240 480 Overloaded Moves . | . . . . . . Propulsion Burnouts . | . . . . . . Robots Hopped . | . . . . . . Potential Cave-ins . | . . . . . . Cave-ins Triggered 1 | . 1 . . . . Exploration Rate (%) 56 | 3 90 44 41 98 63 Regions Visited 5 Branch Regions 3 Pre-discovered Areas 2 | . . 1 . . 1 Known Exits Taken 2 | . . 1 1 . . Unknown Exits Taken 3 | 1 1 . . 1 . Scrap Searched 2 | . . 1 . 1 . Spaces Dug 9 | . 9 . . . . Terrain Destroyed 88 | . 9 38 3 . 38 Melee 9 | . 9 . . . . Projectile 3 | . . . . . 3 AOE 76 | . . 38 3 . 35 Terrain Rammed . | . . . . . . Walls Destroyed . | . . . . . . Machines Disabled . | . . . . . . Actions | -11 -10 -10 -9 -9 -9 --------- Run | Yrd Mat Min Mat Min Exi Total 3073 | 71 816 249 596 511 830 Wait 361 | 2 82 112 90 . 75 Move 2401 | 48 636 130 446 494 647 Hop . | . . . . . . Pick Up 49 | 5 31 . 7 . 6 Fast Attach 13 | 7 2 . 2 1 1 Attach 12 | . 2 1 4 . 5 Detach . | . . . . . . Swap 24 | . 8 2 6 2 6 Drop 27 | . 11 . 6 1 9 Fire 147 | 9 13 4 33 7 81 Melee 31 | . 31 . . . . Ram . | . . . . . . Kick . | . . . . . . Crush 8 | . . . 2 6 . Escape Stasis . | . . . . . . Rewire . | . . . . . . Trap . | . . . . . . Miscellaneous . | . . . . . . Route ------- -11/Scrapyard -10/Materials (discovered 5 exits: *Mat x3 / [*Min] / Sub) -10/Mines (discovered 2 exits: *Mat x2) -9/Materials (discovered 4 exits: *Mat x2 / *Min x2) -9/Mines (discovered 4 exits: *Mat x2 / *Exi / [*Zio]) -9/Exiles History --------- Turn | Location | Event 9 | -11/Scrapyard | Discovered new exit (range 14) 120 | -11/Scrapyard | Entered Materials 304 | -10/Materials | Build established: Mutant 495 | -10/Materials | Discovered new exit (range 8) 720 | -10/Materials | Derelicts attacked the area 916 | -10/Materials | Crushed by falling debris 1066 | -10/Materials | Discovered new exit (range 9) 1563 | -10/Materials | Discovered new exit (range 15) 1797 | -10/Materials | Discovered new exit (range 6) 1931 | -10/Materials | Learned 2 Mines zone layouts 1967 | -10/Materials | Learned Storage security intel 1993 | -10/Materials | Learned 2 Mines zone layouts 2008 | -10/Materials | Learned location of 2 exits from Subcaves 2011 | -10/Materials | Identified exit to Subcaves 2013 | -10/Materials | Learned location of 2 exits from Materials 2048 | -10/Materials | Learned location of 1 exit from Recycling 2080 | -10/Materials | Entered Mines 2081 | -10/Mines | Identified exit to Materials 2251 | -10/Mines | Learned location of Storage (-8) 2620 | -10/Mines | Entered Materials 2620 | -9/Materials | Accompanied by 1 ally 2620 | -9/Materials | Evolved 2 slots: Propulsion x1, Utility x1 2621 | -9/Materials | Identified exit to Materials 2622 | -9/Materials | Identified exit to Mines 2625 | -9/Materials | Led the pair of lost Derelicts to an unsafe place 2647 | -9/Materials | Central database locked down 2944 | -9/Materials | Build established: Scavenger-Mutant 3600 | -9/Materials | Discovered exit to Mines (range 12) 3915 | -9/Materials | Build established: Mutant 3927 | -9/Materials | Entered Mines 3945 | -9/Mines | Met a Derelict bent on vengeance 4038 | -9/Mines | Discovered exit to Materials (range 11) 4112 | -9/Mines | Discovered exit to Materials (range 5) 4203 | -9/Mines | Learned Materials stockpile data 4549 | -9/Mines | Received a Mining Laser from a helpful Derelict 4878 | -9/Mines | A Derelict revealed a hidden shortcut to a safe place 5057 | -9/Mines | Deemed a non-threat by the Exiles lab entrance 5057 | -9/Mines | Discovered new exit (range 5) 5153 | -9/Mines | Entered Exiles 5218 | -9/Exiles | Met 8R-AWN 5257 | -9/Exiles | Met EX-HEX 5353 | -9/Exiles | Met EX-DEC 5475 | -9/Exiles | Met EX-BIN 5653 | -9/Exiles | Learned location of Zion (-7) 6254 | -9/Exiles | Attacked by the Exiles 6407 | -9/Exiles | Core integrity fell below 50% 6423 | -9/Exiles | Destroyed 8R-AWN 6446 | -9/Exiles | Lost 7 parts (1p4n1u1w) 7159 | -9/Exiles | Core integrity fell below 20% 7169 | -9/Exiles | Destroyed by EX-DEC with AWS/EX-DEC Last Messages --------------- 06622_ The unstable cave ceiling collapses. 06643_ Extracted 65 matter. 06678_ Extracted 4 energy. 06688_ Extracted 200 matter. 06694_ Extracted 35 matter. 06788_ Destroyed Prototype Ballistic Cannon. 06788_ DAS Turret destroyed. 06912_ GM-J5T destroyed. 06915_ W1-DM0 knocked back. 06927_ W1-DM0 destroyed. 06930_ DK-RAY destroyed. 06936_ ZX-C33 destroyed. 06947_ Acquired 24 matter. 07006_ Y0-OOJ(z) destroyed. 07024_ 5L-KAT knocked back. 07030_ 5L-KAT destroyed. 07150_ Machine disabled. 07155_ Lgt. Treads destroyed. 07155_ EX-DEC knocked back. 07169_ System corrupted: Heat flow error (+275). Map ----- +----------------------------------------------------+ | ??????????##"" | | ???????????#"" | | ???????????## | | ????????????#" " "" | | ????????????#"""" ""## ##""" " " " | | ????????????#"" ""###???#?####""" "" | | ????????????#" """"##??????????###"""" | | ????????????#""" """#?????????????####? | | ????????????## ""##?????????????????? | | ?????????????#"" """##??????????????????? | | ?????????????##""" ##???????????????????? | | ??????????????##"""" ##????????????????????? | | ???????????????### #?????????????????????? | | ?????????????????##### ##?????????????????????? | | ?????????????????????## #??????????????????????? | | ??????????????????????# #??????????????????????? | | ?????????????????????## #??????????????????????? | | ?????????????????????#; #??????????????????????? | | ?????????????????????#; #??????????????????????? | | ?????????????????????## #??????????????????????? | | ?????????????????????## %#??????????????????????? | | ?????????????????????#; #??????????????????????? | | ?????????????????????##% #??????????????????????? | | ??????????????????????# %#??????????????????????? | | ?????????????????######[ ########???????????????? | | ??????????????? """" % @ """"#???????????????? | | ????????????" !% "#???????????????? | | ??????????z *% " ""??????????? | | ???????????c % %% " " "??????????? | | ??????????? % " ""???????????? | | ???????????? %" % #"" "???????????? | | ???????????? " c "" """""#???????????????? | | ????????????##"""########"""######???????????????? | | ?????????????" ?????????" "????????????????????? | | ????????????????????????" ""????????????????????? | | ????????????????????????"""""????????????????????? | | ????????????????????????" ""?????????????????????? | | ?????????????????????????"???????????????????????? | | ?????????????????????????????????????????????????? | | ?????????????????????????????????????????????????? | | ?????????????????????????????????????????????????? | | ?????????????????????????????????????????????????? | | ?????????????????????????????????????????????????? | | | | | | | | | | | | | | | +----------------------------------------------------+ Best States ------------- Heat Dissipation 28 Energy Generation 14 Energy Capacity 250 Matter Stores 300 Matter Capacity 300 Sight Range 16 Terrain Scan Range 16 Terrain Scan Density 10 Armor Coverage 300 Evasion (%) 40 Targeting Accuracy 5 Recoil Reduction 3 Offensive Hacking 10 Item Schematics ----------------- None Robot Schematics ------------------ M-13 Machinist | -10/Materials | Hacked Fabricated ------------ Nothing Repaired ---------- Nothing Studied --------- Imp. Light Cannon | -9/Materials | Hacked Mace | -9/Materials | Hacked Shotgun | -9/Materials | Hacked Alien Tech Used ----------------- None Achievements -------------- None Challenges ------------ None Game ------ Seed HypercooledNeutronMask Manual? 0 Play Time 00:33:51 Cumulative 368.6 hours Start 2025.11.03 @ 22:02:49 End 2025.11.03 @ 23:21:35 Sessions 1 Manual Loads 0 Difficulty Rogue Special Mode None Game No. 175 Rogue 167 Adventurer 8 Explorer 0 Win Type - Total 24 Types 13/0/4/2/0/1/1/0/2/1 Lore% 89 Gallery% 88 Achievement% 67 Wizard Run 0 Options --------- Layout 2 ASCII 0 Keyboard 1 Movement Numpad Keybinds 1 Fullscreen 1 Font 24/Smallcaps Map View 50x44 Zoom Use 0% Tactical HUD 1 Map Filters NONE Filters NONE Steam 1 RUN: a44adf1c-19a2-4626-9cb4-38da6aaea496